bitfinex/quotes_ETHUSD_20250720
["timestamp","ask_amount","ask_price","bid_price","bid_amount"]
[1753033336338,0.1328,3750.8,3750.1,0.1328]
[1753033336654,0.1328,3750.8,3750.5,2.66630454]
[1753033336856,0.1328,3750.8,3750.7,2.66616898]
[1753033337059,0.8332,3751.4,3750.3,3.0]
[1753033337220,0.1328,3751.1,3751.0,2.66595574]
[1753033337874,1e-08,3751.5,3751.4,2.66567148]
[1753033339169,1e-08,3751.5,3751.4,2.82512819]
[1753033339328,1e-08,3752.0,3751.9,2.66531623]
[1753033339670,1e-08,3752.0,3751.9,5.69196939]
[1753033339831,1e-08,3752.0,3751.9,5.66531623]
[1753033340027,1e-08,3752.0,3751.9,2.66531623]
[1753033340229,0.44870001,3752.0,3751.9,2.66531623]
[1753033340661,1e-08,3752.0,3751.9,3.10881623]
[1753033341163,1e-08,3752.0,3751.9,3.65539749]
[1753033341370,1e-08,3752.0,3751.9,3.13546939]
[1753033341544,0.02,3753.9,3753.6,2.66410912]
[1753033341545,0.76000001,3753.7,3753.6,2.66410912]
[1753033342069,0.76000001,3753.7,3752.3,0.4435]
[1753033342232,0.76000001,3753.7,3752.8,2.66460988]
[1753033342233,2.69403661,3753.6,3752.8,2.66460988]
[1753033342437,0.83897366,3753.5,3752.0,3.0]
[1753033342639,0.02989217,3753.4,3753.0,2.66447542]
[1753033342833,0.39027366,3753.5,3753.0,2.66448489]
[1753033343039,0.4487,3753.3,3753.2,2.66439305]
[1753033343245,0.76000001,3753.7,3752.2,3.02665103]
[1753033343449,0.76000001,3753.7,3752.4,2.66496109]
[1753033343769,0.02989217,3753.6,3752.4,0.02664961]
[1753033343937,0.27042157,3753.6,3752.3,0.4435]
[1753033344658,0.7508,3753.4,3752.5,0.24463714]
[1753033344862,2.6653074,3752.0,3750.2,2.66647561]
[1753033345048,6.50719217,3751.9,3750.3,0.02666453]
[1753033345237,2.66552096,3751.7,3750.3,2.69311698]
[1753033345443,0.2405294,3751.8,3750.3,0.02666453]
[1753033345755,1.34097511,3751.7,3750.3,2.66641285]
[1753033345956,5.91789217,3751.6,3750.1,0.02]
[1753033346158,1.31108294,3751.7,3750.2,2.6664749]
[1753033346366,1.31108294,3751.7,3750.3,0.02666453]
[1753033346566,1.31108294,3751.7,3750.2,0.4435]
[1753033346567,5.884,3751.6,3750.2,0.4435]
[1753033346768,1.31108294,3751.7,3750.2,0.4435]
[1753033347009,0.18913829,3751.6,3750.3,0.02666453]
[1753033347154,0.5803,3751.9,3750.3,0.02666453]
[1753033347511,3.43654804,3752.7,3751.2,0.4435]
[1753033347651,5.87,3752.2,3751.1,0.02]
[1753033348003,2.66530101,3752.0,3751.1,0.02]
[1753033348296,2.69520893,3751.9,3751.1,0.02]
[1753033348468,0.02989217,3751.9,3751.1,0.02]
[1753033348669,5.854,3751.9,3751.1,0.02]
[1753033349258,0.1348,3751.6,3751.1,0.02]
[1753033349759,0.1348,3751.6,3751.2,0.436]
[1753033349963,0.1348,3751.6,3751.1,0.02]
[1753033349964,0.73368,3751.6,3751.1,0.02]
[1753033350189,0.80169217,3751.5,3751.1,0.02]
[1753033350387,2.66576977,3751.3,3751.1,0.02]
[1753033350589,0.02989217,3751.2,3751.1,0.02]
[1753033350785,0.95992992,3751.2,3751.1,0.02]
[1753033350986,0.1328,3751.2,3751.1,0.02]
[1753033351175,0.002,3751.6,3751.2,2.6658136]
[1753033351377,0.002,3751.6,3751.1,0.5888]
[1753033351577,0.002,3751.6,3751.2,0.436]
[1753033351904,0.002,3751.6,3751.5,2.66560042]
[1753033352065,0.002,3751.6,3751.5,2.69225642]
[1753033352456,6.395,3753.2,3751.5,6.12825642]
[1753033352660,6.395,3753.2,3751.6,6.10152937]
[1753033352661,0.002,3753.2,3751.6,6.10152937]
[1753033352998,0.002,3753.2,3752.8,0.1328]
[1753033353286,0.002,3753.2,3752.9,2.66460603]
[1753033353504,0.002,3753.2,3753.1,2.66446404]
[1753033353851,0.002,3753.2,3753.0,0.436]
[1753033354051,0.002,3753.2,3753.1,2.66446404]
[1753033355701,0.002,3753.2,3753.1,3.10046404]
[1753033356554,0.002,3753.2,3752.9,0.02664606]
[1753033356756,0.002,3753.2,3753.1,2.66446404]
[1753033357587,0.002,3753.2,3753.1,2.69110868]
[1753033357792,0.002,3753.2,3753.1,5.69110868]
[1753033358370,1e-08,3753.2,3753.1,5.69110868]
[1753033358696,1e-08,3753.2,3753.1,6.12710868]
[1753033358892,1e-08,3753.2,3753.1,6.85696404]
[1753033359303,1e-08,3753.9,3753.8,2.66396717]
[1753033359485,1e-08,3753.9,3753.8,5.82340684]
[1753033359676,1e-08,3753.9,3753.8,6.25940684]
[1753033359993,1e-08,3753.9,3753.8,6.23276717]
[1753033360786,1e-08,3753.9,3753.8,7.05756717]
[1753033361106,1e-08,3754.2,3754.1,6.21375429]
[1753033361269,1e-08,3754.2,3754.1,12.05855429]
[1753033361467,1e-08,3754.2,3754.1,6.09975429]
[1753033362076,1e-08,3754.2,3754.1,5.66375429]
[1753033362279,1e-08,3754.2,3754.1,2.66375429]
[1753033362503,1e-08,3754.2,3753.9,2.6638304]
[1753033362677,1e-08,3754.2,3753.9,2.66384679]
[1753033362881,1e-08,3754.2,3754.1,2.66375429]
[1753033363327,2.66373246,3754.2,3753.4,2.66420104]
[1753033363468,0.02989217,3754.1,3753.4,2.66420104]
[1753033363664,0.02989217,3754.1,3753.5,2.66411872]
[1753033364027,0.02989217,3754.1,3753.6,2.66410138]
[1753033364028,0.31315207,3754.1,3753.6,2.66410138]
[1753033364221,0.02989217,3754.0,3753.2,3.0]
[1753033364362,1e-08,3754.2,3753.6,3.0]
[1753033364568,1e-08,3754.2,3753.0,5.66453503]
[1753033364828,1e-08,3754.2,3753.6,3.0]
[1753033364968,0.26636264,3754.1,3753.6,2.66409747]
[1753033365173,0.26636264,3754.1,3753.6,3.0]
[1753033365398,0.26636264,3754.1,3753.1,3.02664464]
[1753033365597,1e-08,3754.2,3753.7,2.66397851]
[1753033366203,1e-08,3754.2,3753.8,2.66395413]
[1753033366899,1e-08,3754.2,3753.7,2.66401839]
[1753033367706,1e-08,3754.2,3753.6,2.66409893]
[1753033368070,1e-08,3754.2,3753.7,2.66403703]
[1753033368276,2.93016539,3754.1,3753.5,3.0]
[1753033368603,0.26636234,3754.1,3753.5,2.66417894]
[1753033368987,0.26636234,3754.1,3753.5,2.66416652]
[1753033369314,0.26636234,3754.1,3753.6,2.664103]
[1753033369609,2.93012025,3754.1,3753.5,2.66416012]
[1753033369783,2.98976698,3754.0,3752.7,1.2608]
[1753033369986,2.98976698,3754.0,3753.4,3.0]
[1753033370169,0.32589341,3754.0,3753.2,3.0]
[1753033370372,0.776,3753.9,3753.1,3.0]
[1753033370578,2.66404841,3753.7,3753.1,3.0]
[1753033370823,0.64298454,3753.7,3752.9,3.0]
[1753033370978,2.66397618,3753.8,3752.9,2.66458419]
[1753033371178,0.776,3753.9,3752.7,0.436]
[1753033371179,0.776,3753.9,3753.1,3.0]
[1753033371385,0.776,3753.9,3753.3,2.66427006]
[1753033371631,0.02989217,3753.8,3752.7,0.436]
[1753033371774,0.776,3753.9,3753.4,2.66419754]
[1753033371975,0.1328,3753.6,3753.3,2.66429383]
[1753033372595,0.1328,3753.6,3753.2,2.66437623]
[1753033372798,0.1328,3753.6,3753.5,2.66418009]
[1753033372987,0.1328,3753.6,3753.4,2.66422653]
[1753033373194,0.1328,3753.6,3753.3,2.66432206]
[1753033373815,0.1328,3753.6,3753.4,2.66424239]
[1753033374202,0.1328,3753.6,3753.2,5.66439244]
[1753033374402,0.1328,3753.6,3753.4,2.66423012]
[1753033374722,0.1328,3753.6,3753.5,2.66418009]
[1753033375009,0.1328,3753.6,3753.3,2.66425668]
[1753033375386,0.1328,3753.6,3753.1,2.66446404]
[1753033375588,0.1328,3753.6,3753.4,2.66424771]
[1753033375789,0.1328,3753.6,3753.5,2.66418009]
[1753033376314,1e-08,3754.2,3753.5,0.436]
[1753033376617,0.1328,3754.1,3753.8,2.6639664]
[1753033376915,0.1328,3754.1,3753.6,2.66410912]
[1753033377095,0.1328,3754.1,3753.9,2.66387751]
[1753033377300,0.1328,3754.1,3753.8,2.66394253]
[1753033377612,0.1328,3754.1,3753.6,0.436]
[1753033377613,0.1328,3754.1,3753.9,2.66389]
[1753033377986,0.1328,3754.1,3753.8,2.66394634]
[1753033378716,0.1328,3754.1,3753.4,0.1328]
[1753033378717,0.8173,3754.0,3753.4,0.1328]
[1753033379018,0.8173,3754.0,3752.3,0.7978]
[1753033379019,0.8173,3754.0,3753.0,0.4694]
[1753033379191,0.8173,3754.0,3753.6,2.66409339]
[1753033379396,0.8173,3754.0,3753.5,2.66413716]
[1753033379594,0.8173,3754.0,3753.0,0.4694]
[1753033379595,0.8173,3754.0,3753.7,2.6640168]
[1753033379908,0.8173,3754.0,3753.0,0.4694]
[1753033379909,0.8173,3754.0,3753.3,3.0]
[1753033380213,1e-08,3754.2,3753.5,3.0]
[1753033380419,1e-08,3754.2,3753.9,2.66385107]
[1753033380722,1e-08,3754.2,3754.0,2.6638121]
[1753033381023,1e-08,3754.2,3754.1,2.66375429]
[1753033381184,1e-08,3754.2,3753.4,3.4694]
[1753033381522,1e-08,3754.2,3754.0,2.66380574]
[1753033381724,1e-08,3754.2,3754.1,5.66375429]
[1753033382227,1e-08,3754.2,3754.1,6.15979183]
[1753033382534,1e-08,3754.2,3754.1,6.13315429]
[1753033383218,1e-08,3754.2,3754.1,11.61015429]
[1753033383787,1e-08,3754.2,3754.1,11.60715429]
[1753033384217,1e-08,3754.9,3754.8,2.66325769]
[1753033384417,1e-08,3754.9,3754.8,5.66325769]
[1753033384607,1e-08,3754.9,3754.8,6.98559026]
[1753033384921,1e-08,3754.9,3754.8,6.95895769]
[1753033386398,1e-08,3755.7,3755.6,3.46349038]
[1753033386605,1e-08,3755.7,3755.6,11.91649038]
[1753033386916,1e-08,3756.7,3756.6,3.46278157]
[1753033387125,0.02,3757.9,3757.7,3.0]
[1753033387314,0.02,3757.9,3757.8,5.66113151]
[1753033387518,0.02,3757.9,3757.8,5.6611315]
[1753033387720,0.02,3757.9,3757.8,6.15714281]
[1753033388026,0.02,3757.9,3757.8,6.1305315]
[1753033388242,0.002,3758.0,3757.9,2.66106069]
[1753033388441,1e-08,3758.0,3757.9,6.15707129]
[1753033388733,5.474,3758.9,3758.8,2.66042353]
[1753033388966,0.02,3758.9,3758.8,2.66042353]
[1753033389495,0.02,3758.9,3757.9,0.4694]
[1753033389741,0.7783,3758.7,3756.9,0.4694]
[1753033389953,2.66079666,3758.3,3756.6,2.66198157]
[1753033390105,8.47565889,3758.2,3756.6,2.66198157]
[1753033390310,2.66104752,3758.0,3757.2,2.66150589]
[1753033390622,2.69100464,3757.9,3757.1,2.66162018]
[1753033390931,2.69100464,3757.9,3756.1,2.66233262]
[1753033390932,0.8294,3757.4,3756.6,2.66191455]
[1753033391137,0.02989217,3757.3,3756.1,0.02]
[1753033391291,2.66162731,3757.1,3756.1,0.02]
[1753033391490,2.66205332,3756.5,3756.1,0.02]
[1753033391690,5.427,3756.4,3756.1,0.02]
[1753033391936,5.865,3756.4,3756.1,0.02]
[1753033392304,3.10020735,3756.3,3756.1,0.02]
[1753033392505,5.422,3756.2,3756.1,0.02]
[1753033392827,6.71222073,3756.2,3756.1,0.02]
[1753033393410,6.27422073,3756.2,3756.1,0.02]
[1753033394018,9.76588578,3756.2,3756.1,0.02]
[1753033394219,10.20388578,3756.2,3756.1,0.02]
[1753033394928,10.75388578,3756.2,3756.1,0.02]
[1753033395242,3.492374,3755.2,3755.1,0.02]
[1753033395437,9.52979187,3755.2,3755.1,0.02]
[1753033395633,9.9378997,3755.2,3755.1,0.02]
[1753033396018,5.0958997,3755.2,3755.1,0.02]
[1753033396206,4.5458997,3755.2,3755.1,0.02]
[1753033396405,9.9298997,3755.2,3755.1,0.02]
[1753033396710,10.4798997,3755.2,3755.1,0.02]
[1753033397302,10.4758997,3755.2,3755.1,0.02]
[1753033397915,9.9158997,3755.2,3755.1,0.02]
[1753033398303,9.9128997,3755.2,3755.1,0.02]
[1753033398532,1.8829257,3755.2,3755.1,0.02]
[1753033398730,9.50379187,3755.2,3755.1,0.02]
[1753033398907,0.55,3754.8,3754.1,0.02]
[1753033399115,3.45408334,3754.2,3754.1,0.02]
[1753033399338,8.84597551,3754.2,3754.1,0.02]
[1753033399547,0.7904,3754.2,3754.1,0.02]
[1753033399760,3.45408334,3754.2,3754.1,0.02]
[1753033399969,0.7904,3754.2,3754.1,0.02]
[1753033400323,6.48879544,3754.2,3754.1,0.02]
[1753033400517,1.13579544,3754.2,3754.1,0.02]
[1753033400721,9.69747878,3754.2,3754.1,0.02]
[1753033400918,10.13547878,3754.2,3754.1,0.02]
[1753033401118,3.79947878,3754.2,3754.1,0.02]
[1753033401413,9.59247878,3754.2,3754.1,0.02]
[1753033401958,1.13579544,3754.2,3754.1,0.02]
[1753033402143,6.1434,3754.2,3754.1,0.02]
[1753033402341,9.24508334,3754.2,3754.1,0.02]
[1753033402787,3.89208334,3754.2,3754.1,0.02]
[1753033402919,3.92197551,3754.2,3754.1,0.02]
[1753033403118,9.26397551,3754.2,3754.1,0.02]
[1753033403321,10.4268405,3754.2,3754.1,0.02]
[1753033403951,10.4178405,3754.2,3754.1,0.02]
[1753033404222,5.0848405,3754.2,3754.1,0.02]
[1753033404423,10.44773267,3754.2,3754.1,0.02]
[1753033404618,10.9678405,3754.2,3754.1,0.02]
[1753033405037,2.66410912,3753.6,3753.5,0.001]
[1753033405232,5.321,3753.6,3753.5,0.001]
[1753033405546,5.32,3753.6,3753.5,0.001]
[1753033405958,2.00194366,3754.1,3753.5,0.001]
[1753033406156,2.66395072,3753.9,3753.5,0.001]
[1753033406461,0.02989217,3753.8,3753.5,0.001]
[1753033407036,3.13191058,3753.8,3753.5,0.001]
[1753033407569,2.66410912,3753.6,3753.5,0.001]
[1753033407878,5.32889217,3753.6,3753.5,0.001]
[1753033408031,5.299,3753.6,3753.5,0.001]
[1753033408232,7.96310912,3753.6,3753.5,0.001]
[1753033408473,0.7904,3754.2,3753.5,0.001]
[1753033408779,6.05564,3754.1,3753.5,0.001]
[1753033409100,5.293,3754.0,3753.5,0.001]
[1753033409401,5.289,3753.9,3753.5,2.66515725]
[1753033409693,2.66410912,3753.6,3753.5,0.001]
[1753033410002,3.72881133,3753.6,3753.5,0.001]
[1753033410151,3.7587035,3753.6,3753.5,0.001]
[1753033410487,9.01181133,3753.6,3753.5,0.001]
[1753033412697,8.99181133,3753.6,3753.5,0.001]
[1753033413369,5.26,3753.6,3753.5,0.001]
[1753033413702,0.7749,3754.2,3753.5,0.001]
[1753033413703,0.02989217,3754.1,3753.5,0.001]
[1753033413880,0.02989217,3754.1,3753.5,2.001]
[1753033414084,2.66395804,3753.9,3753.5,2.001]
[1753033414293,7.91582525,3754.0,3753.5,2.001]
[1753033414294,7.9158489,3754.0,3753.5,2.001]
[1753033414478,2.66391662,3753.9,3753.5,2.001]
[1753033414889,0.7749,3754.2,3753.5,2.001]
[1753033415103,0.1328,3753.6,3753.5,4.66518009]
[1753033415298,5.24,3753.6,3753.5,4.66517707]
[1753033415491,0.1328,3753.8,3753.5,4.66513021]
[1753033415688,5.239,3753.7,3753.6,2.66410912]
[1753033416101,0.1328,3753.8,3753.7,2.66403814]
[1753033416304,5.3658,3753.8,3753.7,2.66403814]
[1753033416481,5.233,3753.8,3753.7,2.66403814]
[1753033416882,9.05155355,3754.4,3753.7,2.66403814]
[1753033417100,5.222,3754.3,3753.5,2.4575]
[1753033417302,5.25189217,3754.3,3753.5,5.12166738]
[1753033417508,0.90894,3754.7,3753.5,2.4575]
[1753033417692,5.22,3754.6,3753.9,2.66385501]
[1753033418012,2.66352569,3754.5,3753.9,2.66389021]
[1753033418212,7.88341425,3754.6,3753.6,2.66410252]
[1753033418407,7.88341425,3754.6,3753.8,2.66389872]
[1753033418408,2.6634705,3754.5,3753.8,2.66389872]
[1753033418597,2.6634705,3754.5,3753.7,2.66403814]
[1753033418910,2.6634705,3754.5,3753.9,2.66388681]
[1753033419134,7.88342839,3754.6,3753.9,2.66388681]
[1753033419585,2.66347987,3754.5,3753.9,2.66388681]
[1753033419770,0.7749,3754.7,3753.8,3.12046717]
[1753033419771,3.43829343,3754.7,3753.8,3.12046717]
[1753033419974,7.86147042,3754.6,3753.9,2.66387147]
[1753033420174,2.66347937,3754.5,3753.9,2.66387147]
[1753033420584,2.66349384,3754.5,3753.9,2.66389621]
[1753033420911,0.57989217,3754.4,3753.5,2.001]
[1753033421087,2.66410912,3753.6,3753.5,2.001]
[1753033421281,7.86010912,3753.6,3753.5,2.001]
[1753033422307,5.196,3753.6,3753.5,2.001]
[1753033422513,2.66410912,3753.6,3753.5,2.001]
[1753033422705,5.185,3753.7,3753.5,2.001]
[1753033423075,2.66410912,3753.6,3753.5,2.001]
[1753033423379,3.42410912,3753.6,3753.5,2.001]
[1753033424524,3.45400129,3753.6,3753.5,2.001]
[1753033425095,3.42410912,3753.6,3753.5,2.001]
[1753033425422,8.59610912,3753.6,3753.5,2.001]
[1753033425585,7.83610912,3753.6,3753.5,2.001]
[1753033425916,2.66410912,3753.6,3753.5,2.001]
[1753033426114,7.82710912,3753.6,3753.5,2.001]
[1753033426827,5.163,3753.6,3753.5,2.001]
[1753033426991,7.82710912,3753.6,3753.5,2.001]
[1753033427179,1.58,3753.9,3753.5,2.001]
[1753033427383,5.15,3753.8,3753.6,0.4565]
[1753033427714,0.1328,3753.6,3753.5,4.66518009]
[1753033428080,0.1328,3753.6,3753.5,5.12168009]
[1753033428479,5.143,3753.9,3753.6,2.66410912]
[1753033428794,0.7998,3754.6,3753.9,2.66383153]
[1753033428795,5.143,3754.0,3753.9,2.66383153]
[1753033429010,0.1328,3754.2,3753.9,3.12039621]
[1753033429220,0.1328,3754.2,3754.1,2.66375429]
[1753033429926,0.7998,3755.1,3754.2,2.66368334]
[1753033430110,0.1328,3754.5,3754.3,0.4565]
[1753033430319,0.1328,3754.5,3754.4,2.66354144]
[1753033430517,0.1328,3754.5,3754.4,3.12004144]
[1753033431125,0.93850752,3755.6,3754.7,2.66327695]
[1753033431126,5.126,3754.8,3754.7,2.66327695]
[1753033431429,5.126,3754.8,3754.7,3.11977695]
[1753033431585,0.1328,3754.9,3754.8,2.66325769]
[1753033431786,0.1328,3754.9,3754.8,0.4565]
[1753033432036,5.119,3755.0,3753.6,0.8178]
[1753033432321,2.66381664,3754.1,3753.5,2.001]
[1753033432624,7.80873196,3754.0,3753.5,2.001]
[1753033432810,5.115,3754.0,3753.5,2.001]
[1753033433012,7.1579,3755.5,3753.7,0.8178]
[1753033433194,5.122,3755.0,3753.9,2.66389621]
[1753033433524,0.002,3755.0,3754.6,2.66339171]
[1753033433692,5.12,3754.9,3754.6,2.66339171]
[1753033433888,5.12,3754.9,3754.6,0.4565]
[1753033434125,5.12,3754.9,3754.6,2.66337432]
[1753033434328,0.002,3755.0,3754.6,3.11987432]
[1753033434511,5.115,3754.9,3754.6,0.4565]
[1753033434839,0.002,3755.0,3754.7,0.4565]
[1753033435704,0.002,3755.0,3754.8,3.11974755]
[1753033436334,0.002,3755.0,3754.8,2.66324755]
[1753033436533,0.002,3755.0,3754.9,0.4565]
[1753033436832,5.094,3755.0,3754.9,0.4565]
[1753033437349,5.094,3755.0,3754.2,0.02663683]
[1753033437497,5.094,3755.0,3754.5,0.4565]
[1753033437698,5.094,3755.0,3754.5,0.4328]
[1753033437936,5.084,3755.0,3754.6,2.66339956]
[1753033438191,5.084,3755.0,3754.7,2.66330276]
[1753033438441,5.084,3755.0,3754.8,2.66321067]
[1753033438645,5.084,3755.0,3754.7,3.09610341]
[1753033438941,5.084,3755.0,3754.7,0.4328]
[1753033438942,0.002,3755.0,3754.7,0.4328]
[1753033441057,0.002,3755.0,3754.8,0.4328]
[1753033441555,0.002,3755.0,3754.9,0.4328]
[1753033442211,0.002,3755.0,3754.9,3.09598676]
[1753033443049,0.002,3755.0,3754.9,0.4328]
[1753033444187,0.002,3755.0,3754.9,3.09598676]
[1753033445441,0.002,3755.0,3754.9,3.12261862]
[1753033445644,0.002,3755.0,3754.9,3.22878676]
[1753033447249,1e-08,3755.0,3754.9,6.22878676]
[1753033449801,1e-08,3755.0,3754.9,2.66318676]
[1753033450063,1e-08,3755.0,3754.9,3.22878676]
[1753033450495,1e-08,3755.0,3754.9,3.25541862]
[1753033450797,1e-08,3755.0,3754.9,2.79598676]
[1753033451687,1e-08,3755.0,3754.6,0.1328]
[1753033451870,1e-08,3755.0,3754.9,2.66318676]
[1753033452063,2.66325769,3754.8,3754.7,0.02663328]
[1753033452261,2.66325769,3754.8,3753.4,0.8264]
[1753033452262,2.79612862,3754.7,3753.6,0.4328]
[1753033452449,2.79612862,3754.7,3753.7,2.66403814]
[1753033452786,4.984,3754.6,3753.8,0.45943967]
[1753033453000,4.984,3754.6,3754.3,2.66355082]
[1753033453293,4.984,3754.6,3754.2,0.1328]
[1753033453294,1e-08,3755.0,3754.4,0.4328]
[1753033453498,0.1328,3754.9,3754.4,3.09628747]
[1753033454198,0.1328,3754.9,3754.4,0.4328]
[1753033454426,0.1328,3754.9,3754.4,3.0962737]
[1753033454576,0.1328,3754.9,3754.4,2.66351664]
[1753033454914,1e-08,3755.0,3754.5,2.79622442]
[1753033455063,1e-08,3755.0,3754.7,2.66329271]
[1753033456063,1e-08,3755.0,3754.5,3.22906557]
[1753033456285,1e-08,3755.0,3754.9,2.66318676]
[1753033456792,1e-08,3755.0,3754.9,3.09598676]
[1753033457007,1e-08,3755.0,3754.9,0.4328]
[1753033457597,1e-08,3755.0,3754.9,3.09598676]
[1753033458872,1e-08,3755.0,3754.9,3.92078676]
[1753033460403,1e-08,3755.0,3754.9,2.66318676]
[1753033460772,1e-08,3755.0,3754.0,2.6638123]
[1753033461000,1e-08,3755.0,3754.9,2.66318676]
[1753033461403,1e-08,3755.0,3754.6,3.0]
[1753033461713,1e-08,3755.0,3754.5,2.66444999]
[1753033461714,1e-08,3755.0,3754.8,0.4328]
[1753033461892,1e-08,3755.0,3754.9,4.934]
[1753033462202,1e-08,3755.0,3754.8,4.93]
[1753033463063,1e-08,3755.0,3754.9,0.4328]
[1753033463347,1e-08,3755.0,3751.9,0.001]
[1753033463348,2.66496109,3752.4,3751.9,0.001]
[1753033463625,5.16307535,3752.4,3751.9,0.001]
[1753033463918,3.68943594,3752.4,3751.9,0.001]
[1753033464098,3.65954377,3752.4,3751.9,0.001]
[1753033464300,1.32068268,3752.4,3751.9,0.001]
[1753033464502,0.7877,3752.4,3751.9,0.001]
[1753033464719,0.7877,3753.2,3752.1,0.8401]
[1753033464919,0.7877,3753.2,3752.2,0.02665103]
[1753033465130,0.7877,3753.2,3752.2,3.02665103]
[1753033465293,4.993,3753.5,3752.2,5.69175316]
[1753033465494,0.7877,3753.6,3752.8,2.66463636]
[1753033465680,0.7877,3753.6,3752.6,2.69140391]
[1753033466014,0.7877,3753.6,3752.9,2.66458366]
[1753033466216,7.65990006,3753.9,3752.8,0.02664677]
[1753033466377,8.45441789,3754.1,3752.8,0.02664677]
[1753033466725,0.7966,3754.1,3752.8,0.02664677]
[1753033466898,9.05152454,3754.5,3753.4,2.66423745]
[1753033467091,1.25114541,3754.4,3753.6,2.66404022]
[1753033467276,0.7966,3754.6,3753.7,0.02664038]
[1753033467472,0.7966,3754.6,3753.8,2.66396204]
[1753033467790,0.7966,3754.6,3753.7,2.69066274]
[1753033468195,0.7966,3754.6,3753.7,2.69064691]
[1753033468392,2.66317823,3755.0,3754.0,2.66382063]
[1753033468578,2.66317823,3755.0,3754.0,2.69045888]
[1753033469112,2.68319489,3754.9,3754.0,0.02663825]
[1753033469419,0.02,3754.9,3754.4,2.66349926]
[1753033469589,0.02,3754.9,3754.1,0.78593754]
[1753033469791,0.02,3754.9,3754.6,2.66333458]
[1753033469990,0.02,3754.9,3754.5,0.0266347]
[1753033470178,0.02,3754.9,3754.7,2.66331784]
[1753033470386,0.02,3754.9,3754.8,0.02663257]
[1753033470592,0.02,3754.9,3754.8,2.68989026]
[1753033470794,0.02,3754.9,3754.8,0.02663257]
[1753033471324,0.02,3754.9,3754.7,3.1328]
[1753033471619,0.02,3754.9,3754.5,4.962]
[1753033471821,0.02,3754.9,3754.5,5.0948]
[1753033471997,0.02,3754.9,3754.6,0.02663399]
[1753033472188,0.02,3754.9,3754.7,0.1328]
[1753033473025,0.02,3754.9,3754.4,4.945]
[1753033473232,0.4903,3754.9,3754.5,0.1328]
[1753033473524,0.02,3754.9,3754.5,0.1328]
[1753033474631,0.02,3754.9,3754.8,2.66325769]
[1753033475126,0.02,3754.9,3754.8,2.68989026]
[1753033475328,0.02,3754.9,3754.8,3.14559026]
[1753033475626,0.02,3754.9,3754.8,6.14559026]
[1753033475801,0.02,3754.9,3754.8,6.11895769]
[1753033477521,0.02,3754.9,3754.8,7.57825769]
[1753033480131,0.02,3754.9,3754.8,11.03395769]
[1753033481698,1e-08,3755.0,3754.9,2.66318676]
[1753033481909,1e-08,3755.0,3754.9,5.68981862]
[1753033482125,1e-08,3755.0,3754.9,6.14551862]
[1753033482332,1e-08,3755.0,3754.9,6.11888676]
[1753033482724,1e-08,3755.0,3754.9,6.94598676]
[1753033486621,1e-08,3755.0,3754.9,7.52218676]
[1753033486825,1e-08,3755.0,3754.9,10.52218676]
[1753033488426,1e-08,3755.0,3754.9,5.66318676]
[1753033488659,1e-08,3755.0,3754.9,10.52218676]
[1753033488856,1e-08,3755.0,3754.9,5.66318676]
[1753033489066,1e-08,3755.0,3754.9,11.00451862]
[1753033489257,1e-08,3755.0,3754.9,10.97788676]
[1753033490161,1e-08,3755.0,3754.9,11.11068676]
[1753033491273,1e-08,3755.0,3754.9,6.25168676]
[1753033491664,1e-08,3755.0,3754.9,11.11068676]
[1753033492853,1e-08,3755.0,3754.9,11.89638676]
[1753033496067,1e-08,3755.8,3755.7,2.66261948]
[1753033496267,1e-08,3755.8,3755.7,10.52061948]
[1753033496575,1e-08,3755.8,3755.7,11.10911948]
[1753033496820,1e-08,3755.9,3755.8,6.45624859]
[1753033496967,0.002,3756.6,3756.1,5.66233593]
[1753033497158,1e-08,3756.5,3756.4,5.6621233]
[1753033497346,1e-08,3756.5,3756.4,10.67854453]
[1753033497675,0.022,3756.9,3756.8,2.66183986]
[1753033497878,0.022,3756.9,3756.8,7.54545825]
[1753033498078,0.022,3756.9,3756.8,8.09313986]
[1753033498251,1e-08,3756.9,3756.8,11.09313986]
[1753033498581,1e-08,3756.9,3756.8,11.88683986]
[1753033502587,1e-08,3756.9,3756.8,7.02983986]
[1753033502789,1e-08,3756.9,3756.8,3.1328]
[1753033503068,0.45660001,3756.9,3756.8,0.1328]
[1753033503384,0.45660001,3756.9,3756.4,0.1328]
[1753033503582,0.32510445,3756.8,3756.3,2.66214155]
[1753033503906,0.4566,3756.7,3756.3,0.1328]
[1753033504357,0.4566,3756.6,3756.3,0.1328]
[1753033504665,2.6621233,3756.4,3756.3,0.1328]
[1753033504906,2.6621233,3756.4,3755.2,6.386]
[1753033504907,0.1328,3756.3,3755.9,2.66247497]
[1753033505080,0.17356139,3756.2,3755.5,4.854]
[1753033505283,0.1328,3755.8,3755.5,4.854]
[1753033505479,0.4566,3755.7,3755.6,2.66262628]
[1753033506087,0.4566,3755.7,3755.5,2.66274224]
[1753033506287,0.7902,3755.7,3755.2,0.1328]
[1753033506490,2.79557467,3755.5,3755.1,0.02]
[1753033506712,0.02989217,3755.4,3755.1,0.02]
[1753033507022,0.7902,3755.1,3753.8,0.1328]
[1753033507170,3.45341147,3754.9,3753.4,0.20183067]
[1753033507372,2.66334072,3754.7,3753.9,2.66389319]
[1753033507572,2.69330565,3754.6,3753.8,2.66394693]
[1753033507800,1.10116288,3754.6,3754.0,2.66380753]
[1753033507966,3.12014011,3754.5,3753.4,2.66425017]
[1753033508182,0.02989217,3754.4,3753.5,3.0]
[1753033508383,3.12021763,3754.3,3753.6,2.66409624]
[1753033508577,0.7902,3754.9,3753.3,0.001]
[1753033508578,0.02579507,3754.5,3753.7,2.6640282]
[1753033508792,0.4566,3754.2,3753.3,0.001]